bitfinex/quotes_BTCUSD_20240821
["timestamp","ask_amount","ask_price","bid_price","bid_amount"]
[1724199389848,0.00420661,59434.0,59423.0,0.03383]
[1724199390310,0.00420661,59434.0,59424.0,0.17853]
[1724199390516,0.01241661,59437.0,59424.0,0.17853]
[1724199390723,0.00420689,59433.0,59424.0,0.11373]
[1724199390900,0.0649,59427.0,59424.0,0.03383]
[1724199391104,0.00420698,59426.0,59422.0,0.014]
[1724199391306,0.01571951,59425.0,59423.0,0.014]
[1724199391629,0.0477,59424.0,59422.0,0.014]
[1724199391832,0.0477,59424.0,59410.0,0.1]
[1724199392050,0.0477,59424.0,59411.0,0.03383]
[1724199392273,0.0477,59424.0,59423.0,0.014]
[1724199392464,0.1397225,59424.0,59423.0,0.014]
[1724199392674,0.1126,59423.0,59408.0,0.0009031]
[1724199392887,0.03852465,59424.0,59410.0,0.49229154]
[1724199392888,0.0477,59421.0,59410.0,0.49229154]
[1724199393065,0.0477,59421.0,59409.0,0.03383]
[1724199393299,0.0477,59419.0,59409.0,0.03383]
[1724199393502,0.01543233,59418.0,59409.0,0.03383]
[1724199394018,0.01543281,59417.0,59409.0,0.03383]
[1724199394170,0.01543281,59416.0,59409.0,0.03383]
[1724199394372,0.01543281,59415.0,59409.0,0.03383]
[1724199394534,0.01543281,59414.0,59409.0,0.03383]
[1724199394736,0.01142171,59414.0,59409.0,0.04583]
[1724199395132,0.00420813,59418.0,59409.0,0.03383]
[1724199395330,0.01543281,59417.0,59409.0,0.06183]
[1724199395531,0.01543281,59416.0,59409.0,0.06183]
[1724199395734,0.01543281,59415.0,59409.0,0.04783]
[1724199395957,0.01543281,59414.0,59408.0,0.0009031]
[1724199396168,0.01543281,59413.0,59409.0,0.06183]
[1724199396370,0.01142171,59414.0,59409.0,0.06183]
[1724199396592,0.01543281,59413.0,59409.0,0.06183]
[1724199396794,0.02800693,59418.0,59409.0,0.04783]
[1724199396979,0.01142171,59412.0,59409.0,0.04783]
[1724199397167,0.00420812,59418.0,59409.0,0.04783]
[1724199397389,0.01142171,59411.0,59409.0,0.04783]
[1724199397506,0.0477,59419.0,59409.0,0.03383]
[1724199397730,0.0477,59419.0,59409.0,0.04783]
[1724199397731,0.04343975,59418.0,59409.0,0.04783]
[1724199397947,0.05486146,59418.0,59409.0,0.04783]
[1724199398149,0.01543281,59417.0,59409.0,0.04783]
[1724199398374,0.01543281,59416.0,59409.0,0.0487331]
[1724199398579,0.0477,59419.0,59409.0,0.0607331]
[1724199398580,0.02685452,59415.0,59409.0,0.0607331]
[1724199398782,0.01543281,59414.0,59409.0,0.0467331]
[1724199398957,0.01543281,59413.0,59409.0,0.0467331]
[1724199399194,0.02685452,59412.0,59409.0,0.0607331]
[1724199399394,0.02685452,59412.0,59409.0,0.0487331]
[1724199399395,0.01543281,59411.0,59409.0,0.0487331]
[1724199399601,0.00420812,59418.0,59409.0,0.0347331]
[1724199399776,0.01142171,59417.0,59409.0,0.0347331]
[1724199399978,0.01964093,59416.0,59409.0,0.0487331]
[1724199400179,0.01543281,59415.0,59409.0,0.0487331]
[1724199400378,0.03106264,59414.0,59409.0,0.0487331]
[1724199400579,0.01543281,59413.0,59409.0,0.0487331]
[1724199400855,0.01543281,59412.0,59409.0,0.0627331]
[1724199400984,0.01543281,59411.0,59409.0,0.0627331]
[1724199401220,0.00420812,59418.0,59409.0,0.0627331]
[1724199401437,0.01142171,59417.0,59409.0,0.0627331]
[1724199401644,0.01142171,59417.0,59409.0,0.0487331]
[1724199401645,0.1117,59415.0,59409.0,0.0487331]
[1724199401827,0.04764811,59414.0,59409.0,0.0289031]
[1724199402026,0.05486338,59413.0,59409.0,0.0149031]
[1724199402370,0.05486338,59413.0,59409.0,0.0009031]
[1724199402371,0.04765022,59412.0,59409.0,0.0009031]
[1724199402549,0.04344167,59411.0,59409.0,0.0269031]
[1724199402748,0.0953502,59410.0,59409.0,0.0269031]
[1724199402950,0.0953502,59410.0,59409.0,0.0129031]
[1724199403384,0.10674721,59410.0,59409.0,0.0269031]
[1724199403818,0.10253868,59410.0,59409.0,0.0129031]
[1724199404162,0.10253868,59410.0,59409.0,0.0269031]
[1724199404484,0.18123224,59410.0,59409.0,0.0149031]
[1724199404682,0.18123224,59410.0,59409.0,0.0289031]
[1724199404909,0.18123224,59410.0,59409.0,0.0149031]
[1724199404910,0.28123224,59410.0,59409.0,0.0149031]
[1724199405123,0.31226347,59410.0,59409.0,0.0149031]
[1724199405371,0.31426347,59410.0,59409.0,0.0149031]
[1724199405574,0.31026347,59410.0,59409.0,0.0149031]
[1724199405978,0.31026347,59410.0,59409.0,0.0009031]
[1724199406187,0.29987847,59410.0,59409.0,0.0289031]
[1724199406594,0.29987847,59410.0,59409.0,0.0009031]
[1724199406925,0.29987847,59410.0,59409.0,0.0109031]
[1724199407127,0.29787847,59410.0,59409.0,0.0109031]
[1724199407338,0.29987847,59410.0,59409.0,0.0109031]
[1724199407536,0.33477661,59410.0,59409.0,0.0109031]
[1724199407755,0.33777661,59410.0,59409.0,0.0109031]
[1724199407956,0.30287847,59410.0,59409.0,0.0109031]
[1724199408152,0.29787847,59410.0,59409.0,0.0109031]
[1724199408363,0.30187847,59410.0,59409.0,0.0109031]
[1724199408560,0.27384724,59410.0,59409.0,0.0109031]
[1724199408764,0.30614225,59410.0,59409.0,0.0109031]
[1724199408971,0.30914225,59410.0,59409.0,0.0109031]
[1724199409217,0.30914225,59410.0,59409.0,0.0009031]
[1724199409801,0.31114225,59410.0,59409.0,0.0119031]
[1724199410017,0.29576254,59410.0,59409.0,0.0119031]
[1724199410183,0.29776254,59410.0,59409.0,0.0119031]
[1724199410381,0.34122807,59410.0,59409.0,0.0119031]
[1724199410839,0.34122807,59410.0,59409.0,0.0009031]
[1724199411090,0.2421,59409.0,59408.0,0.0009031]
[1724199411302,0.2421,59409.0,59381.0,0.0761]
[1724199411303,0.001,59395.0,59381.0,0.0761]
[1724199411536,0.3433,59396.0,59381.0,0.0761]
[1724199411537,0.00421022,59394.0,59381.0,0.0761]
[1724199411975,0.01135745,59393.0,59381.0,0.0761]
[1724199412148,0.0624,59391.0,59381.0,0.0761]
[1724199412458,0.01551387,59390.0,59388.0,0.0119031]
[1724199412839,0.01551387,59390.0,59388.0,0.0009031]
[1724199413045,0.01544311,59389.0,59388.0,0.0149031]
[1724199413466,0.02674676,59389.0,59388.0,0.0009031]
[1724199413891,0.02674676,59389.0,59388.0,0.0149031]
[1724199414703,0.02674676,59389.0,59388.0,0.0289031]
[1724199415050,0.02674676,59389.0,59388.0,0.0009031]
[1724199415254,0.01130365,59389.0,59388.0,0.0009031]
[1724199415457,0.002,59389.0,59388.0,0.1714031]
[1724199420286,0.002,59389.0,59378.0,0.4319331]
[1724199420542,0.002,59389.0,59379.0,0.03383]
[1724199420543,0.00179744,59389.0,59379.0,0.03383]
[1724199421158,0.001,59389.0,59379.0,0.03383]
[1724199421568,0.0154413,59388.0,59379.0,0.03383]
[1724199421715,0.00877513,59388.0,59379.0,0.03383]
[1724199421931,0.01544193,59387.0,59379.0,0.03383]
[1724199422157,0.001,59389.0,59379.0,0.03383]
[1724199422340,0.01544153,59388.0,59379.0,0.04783]
[1724199422537,0.002,59389.0,59379.0,0.051198]
[1724199422740,0.002,59389.0,59379.0,0.11647111]
[1724199422741,0.001,59389.0,59379.0,0.11647111]
[1724199422948,0.001,59388.0,59379.0,0.13047111]
[1724199423174,0.001,59388.0,59381.0,0.03383]
[1724199423175,0.001,59387.0,59381.0,0.03383]
[1724199423375,0.001,59387.0,59383.0,0.03383]
[1724199423633,0.001,59387.0,59385.0,0.03383]
[1724199423863,0.001,59387.0,59386.0,0.0831]
[1724199424263,0.06530948,59401.0,59386.0,0.0831]
[1724199424459,0.06100242,59400.0,59386.0,0.0831]
[1724199424640,0.001,59387.0,59386.0,0.0831]
[1724199424840,0.001,59389.0,59386.0,0.0831]
[1724199425127,0.03431095,59400.0,59386.0,0.0831]
[1724199425335,0.001,59387.0,59386.0,0.0831]
[1724199425925,0.02802036,59397.0,59386.0,0.0831]
[1724199426129,0.01544099,59396.0,59386.0,0.0831]
[1724199426357,0.01544099,59395.0,59386.0,0.0831]
[1724199426533,0.01544099,59394.0,59386.0,0.0831]
[1724199426743,0.01544099,59393.0,59386.0,0.0831]
[1724199426942,0.01080173,59394.0,59386.0,0.0831]
[1724199426943,0.01544099,59392.0,59386.0,0.0831]
[1724199427150,0.01544099,59391.0,59386.0,0.0831]
[1724199427373,0.01544099,59390.0,59386.0,0.0831]
[1724199427939,0.001,59387.0,59386.0,0.0861]
[1724199428133,0.001,59387.0,59386.0,0.0831]
[1724199428652,0.001,59387.0,59386.0,0.0941]
[1724199428856,0.001,59397.0,59386.0,0.0911]
[1724199428979,0.001,59387.0,59386.0,0.0861]
[1724199429385,0.002,59387.0,59386.0,0.1553]
[1724199431684,0.01744023,59387.0,59386.0,0.1553]
[1724199432396,0.01744033,59387.0,59386.0,0.1553]
[1724199433722,0.01744033,59387.0,59386.0,0.0941]
[1724199436073,0.002,59387.0,59386.0,0.0941]
[1724199436258,0.01744045,59387.0,59386.0,0.0941]
[1724199437274,0.02824155,59387.0,59386.0,0.0941]
[1724199438067,0.01744045,59387.0,59386.0,0.0941]
[1724199438792,0.01744045,59387.0,59386.0,0.011]
[1724199439200,0.02824381,59387.0,59386.0,0.011]
[1724199439411,0.05626411,59387.0,59386.0,0.011]
[1724199440444,0.01280336,59387.0,59386.0,0.011]
[1724199440659,0.02824422,59387.0,59386.0,0.011]
[1724199440886,0.05626506,59387.0,59386.0,0.011]
[1724199444006,0.01280336,59387.0,59386.0,0.011]
[1724199444156,0.02824401,59387.0,59386.0,0.011]
[1724199444354,0.04546113,59387.0,59386.0,0.011]
[1724199444558,0.01744065,59387.0,59386.0,0.011]
[1724199444759,0.02824401,59387.0,59386.0,0.011]
[1724199444958,0.05626449,59387.0,59386.0,0.011]
[1724199447857,0.01280336,59387.0,59386.0,0.011]
[1724199448056,0.02824396,59387.0,59386.0,0.011]
[1724199448260,0.0174406,59387.0,59386.0,0.011]
[1724199448465,0.02824094,59387.0,59386.0,0.011]
[1724199448640,0.05626134,59387.0,59386.0,0.011]
[1724199449107,0.01280034,59387.0,59386.0,0.0119031]
[1724199449316,0.05626141,59387.0,59386.0,0.0119031]
[1724199449520,0.02824097,59387.0,59386.0,0.0119031]
[1724199450136,0.04082078,59387.0,59386.0,0.0119031]
[1724199450311,0.05626125,59387.0,59386.0,0.0119031]
[1724199450539,0.04546091,59387.0,59386.0,0.0119031]
[1724199450774,0.01744057,59387.0,59386.0,0.0119031]
[1724199450980,0.02823835,59387.0,59386.0,0.0119031]
[1724199451196,0.04546091,59387.0,59386.0,0.0119031]
[1724199451491,0.04546091,59387.0,59386.0,0.21159605]
[1724199451661,0.04546091,59387.0,59386.0,0.21159913]
[1724199451874,0.002,59387.0,59386.0,0.21159913]
[1724199452046,0.01744005,59387.0,59386.0,0.14519913]
[1724199452253,0.002,59387.0,59386.0,0.14519913]
[1724199452477,0.04545963,59387.0,59386.0,0.14519913]
[1724199452690,0.05625891,59387.0,59386.0,0.14519913]
[1724199453248,0.0174401,59387.0,59386.0,0.17039715]
[1724199453932,0.0174401,59387.0,59386.0,0.0948031]
[1724199454475,0.0174401,59387.0,59386.0,0.14521232]
[1724199454910,0.04545905,59387.0,59386.0,0.0119031]
[1724199455106,0.06693634,59387.0,59386.0,0.0119031]
[1724199456349,0.05625833,59387.0,59386.0,0.0119031]
[1724199459702,0.01279928,59387.0,59386.0,0.0119031]
[1724199459846,0.02824029,59387.0,59386.0,0.0119031]
[1724199460045,0.05626139,59387.0,59386.0,0.0119031]
[1724199460552,0.05626139,59387.0,59386.0,0.06232831]
[1724199460923,0.05626139,59387.0,59386.0,0.0119031]
[1724199461345,0.04546211,59387.0,59386.0,0.0119031]
[1724199461527,0.01744101,59387.0,59386.0,0.0119031]
[1724199462071,0.01744101,59387.0,59386.0,0.06232831]
[1724199462258,0.01744101,59387.0,59386.0,0.0119031]
[1724199462459,0.03877658,59387.0,59386.0,0.0119031]
[1724199462663,0.0279773,59387.0,59386.0,0.0119031]
[1724199462814,0.06679561,59387.0,59386.0,0.0119031]
[1724199466475,0.05625932,59387.0,59386.0,0.0119031]
[1724199467326,0.0562603,59387.0,59386.0,0.0119031]
[1724199469870,0.0562603,59387.0,59386.0,0.0457331]
[1724199472942,0.05626036,59387.0,59386.0,0.0457331]
[1724199475484,0.05626325,59387.0,59386.0,0.0457331]
[1724199475885,0.05626319,59387.0,59386.0,0.0457331]
[1724199476481,0.27457431,59387.0,59386.0,0.0457331]
[1724199476680,0.26295746,59387.0,59386.0,0.0457331]
[1724199477024,0.20387313,59387.0,59386.0,0.0457331]
[1724199477257,0.26295865,59387.0,59386.0,0.0457331]
[1724199479393,0.18465865,59387.0,59386.0,0.0457331]
[1724199480581,0.11955865,59387.0,59386.0,0.0457331]
[1724199480883,0.05626319,59387.0,59386.0,0.0119031]
[1724199481108,0.05626319,59387.0,59386.0,0.16199628]
[1724199481312,0.002,59387.0,59386.0,1.18272516]
[1724199481520,0.000821,59389.0,59388.0,0.1374]
[1724199481725,0.000821,59389.0,59388.0,1.17375434]
[1724199481923,0.000821,59389.0,59388.0,1.33773312]
[1724199482498,0.000821,59389.0,59388.0,0.81441918]
[1724199482642,0.001821,59389.0,59388.0,1.34073312]
[1724199482843,0.001821,59389.0,59388.0,0.81741918]
[1724199483247,0.001821,59389.0,59388.0,0.81405241]
[1724199483478,0.001821,59389.0,59388.0,0.96302344]
[1724199483676,0.001821,59389.0,59388.0,0.64707363]
[1724199483875,0.001821,59389.0,59388.0,0.64807363]
[1724199484543,0.00161834,59389.0,59388.0,0.64807363]
[1724199484971,0.00161834,59389.0,59388.0,0.66207363]
[1724199485148,0.00161834,59389.0,59388.0,0.82805241]
[1724199485704,0.00161834,59389.0,59388.0,0.83005241]
[1724199485908,0.13456089,59420.0,59397.0,0.001]
[1724199485909,0.066,59418.0,59397.0,0.001]
[1724199486153,0.05381959,59417.0,59403.0,0.0831]
[1724199486367,0.02800841,59416.0,59404.0,0.11922415]
[1724199486527,0.02800841,59417.0,59405.0,0.0815]
[1724199486764,0.01037665,59416.0,59405.0,0.0815]
[1724199486973,0.03838498,59416.0,59406.0,0.02040906]
[1724199487145,0.02800833,59416.0,59406.0,0.02040906]
[1724199487325,0.02581026,59415.0,59406.0,0.02040906]
[1724199487513,0.01543361,59414.0,59407.0,0.02211332]
[1724199487713,0.01037665,59413.0,59407.0,0.02211332]
[1724199488015,0.006,59417.0,59407.0,0.02211332]
[1724199488239,0.02880887,59416.0,59408.0,0.02262039]
[1724199488439,0.01037665,59416.0,59408.0,0.02262039]
[1724199488675,0.0616,59426.0,59414.0,0.03383]
[1724199488876,0.0616,59426.0,59416.0,0.03383]
[1724199488877,0.0289355,59425.0,59416.0,0.03383]
[1724199489077,0.0289355,59425.0,59418.0,0.03383]
[1724199489255,0.000931,59425.0,59418.0,0.03383]
[1724199490557,0.000931,59425.0,59418.0,0.02983]
[1724199491169,0.001821,59419.0,59418.0,0.05783]
[1724199491381,0.000821,59419.0,59418.0,0.04383]
[1724199491579,0.000821,59419.0,59418.0,0.02983]
[1724199491798,0.001821,59419.0,59418.0,0.04383]
[1724199492009,0.001821,59419.0,59418.0,0.042173]
[1724199492185,0.001821,59419.0,59418.0,0.02983]
[1724199492512,0.002821,59419.0,59418.0,0.05783]
[1724199493828,0.000821,59419.0,59418.0,0.04383]
[1724199494738,0.000821,59419.0,59418.0,0.02983]
[1724199495259,0.000821,59419.0,59418.0,0.04383]
[1724199495756,0.000821,59419.0,59418.0,0.05783]
[1724199496140,0.01087409,59419.0,59418.0,0.05783]
[1724199497350,0.01087409,59419.0,59418.0,0.04383]
[1724199497754,0.01087409,59419.0,59418.0,0.05783]
[1724199497952,0.01508157,59419.0,59418.0,0.05783]
[1724199498188,0.01087409,59419.0,59418.0,0.05783]
[1724199498782,0.01087409,59419.0,59418.0,0.06183]
[1724199499067,0.01087409,59419.0,59418.0,0.028]
[1724199503067,0.0263615,59419.0,59418.0,0.028]
[1724199503471,0.01087409,59419.0,59418.0,0.028]
[1724199504300,0.03,59416.0,59391.0,0.12674006]
[1724199504563,0.0817,59409.0,59393.0,0.49202754]
[1724199504768,0.01964288,59408.0,59394.0,0.0768]
[1724199504980,0.01543405,59407.0,59394.0,0.0768]
[1724199505192,0.03562077,59407.0,59395.0,0.03383]
[1724199505394,0.01543405,59406.0,59395.0,0.03383]
[1724199505613,0.01543405,59405.0,59395.0,0.03719706]
[1724199505832,0.1452,59403.0,59395.0,0.03383]
[1724199506053,0.0817,59401.0,59394.0,0.002]
[1724199506285,0.01964722,59402.0,59395.0,0.0768]
[1724199506286,0.01543791,59400.0,59395.0,0.0768]
[1724199506494,0.01543791,59399.0,59395.0,0.0768]
[1724199506693,0.00420969,59406.0,59395.0,0.0768]
[1724199506908,0.01005243,59398.0,59395.0,0.0768]
[1724199507139,0.08033866,59397.0,59394.0,0.014]
[1724199507350,0.08033866,59397.0,59390.0,0.03383]
[1724199507351,0.01543912,59396.0,59390.0,0.03383]
[1724199507571,0.07495243,59397.0,59395.0,0.008]
[1724199507572,0.01005243,59397.0,59395.0,0.008]
[1724199507788,0.01543929,59396.0,59387.0,0.03383]
[1724199507991,0.01005243,59396.0,59387.0,0.03383]
[1724199508228,0.01005243,59396.0,59395.0,0.022]
[1724199508426,0.01543929,59396.0,59395.0,0.014]
[1724199508634,0.02549172,59396.0,59395.0,0.014]
[1724199508847,0.02549172,59396.0,59395.0,0.022]
[1724199509060,0.02549172,59396.0,59395.0,0.014]
[1724199509478,0.02649172,59396.0,59395.0,0.022]
[1724199509700,0.02649172,59396.0,59395.0,0.008]
[1724199510738,0.02549172,59396.0,59395.0,0.014]
[1724199510940,0.02649172,59396.0,59395.0,0.014]
[1724199511158,0.02649172,59396.0,59386.0,0.0811031]
[1724199511388,0.01543929,59395.0,59387.0,0.03383]
[1724199511594,0.01543929,59394.0,59387.0,0.03383]
[1724199511810,0.01543929,59393.0,59387.0,0.03383]
[1724199512019,0.01543929,59392.0,59387.0,0.03383]
[1724199512219,0.001,59396.0,59387.0,0.03383]
[1724199512439,0.01544037,59395.0,59387.0,0.06178004]
[1724199512645,0.0164404,59394.0,59388.0,0.11693]
[1724199512860,0.0154404,59393.0,59388.0,0.11693]
[1724199513063,0.001,59394.0,59388.0,0.11693]
[1724199513271,0.01544039,59393.0,59388.0,0.11693]
[1724199513474,0.001,59394.0,59388.0,0.11693]
[1724199513686,0.01544039,59393.0,59388.0,0.11693]
[1724199513892,0.001,59394.0,59388.0,0.13093]
[1724199514097,0.01544039,59393.0,59388.0,0.13093]
[1724199514311,0.001,59394.0,59388.0,0.13093]
[1724199514528,0.02802008,59401.0,59388.0,0.13093]
[1724199514738,0.01005243,59393.0,59388.0,0.11693]
[1724199514935,0.001,59393.0,59388.0,0.12493]
[1724199515165,0.001,59393.0,59388.0,0.11693]
[1724199515591,0.001,59393.0,59388.0,0.12493]
[1724199515795,0.02802004,59401.0,59388.0,0.11693]
[1724199516006,0.0154404,59400.0,59388.0,0.11693]
[1724199516205,0.0154404,59399.0,59388.0,0.11693]
[1724199516436,0.0154404,59398.0,59388.0,0.11693]
[1724199516669,0.0649,59402.0,59388.0,0.11693]
[1724199516670,0.02544354,59397.0,59388.0,0.11693]
[1724199516891,0.01000315,59397.0,59388.0,0.13093]
[1724199517144,0.001,59393.0,59388.0,0.13893]
[1724199517349,0.001,59393.0,59388.0,0.12493]
[1724199517551,0.001,59393.0,59388.0,0.13066645]
[1724199517726,0.001,59393.0,59388.0,0.13866645]
[1724199518312,0.0649,59402.0,59388.0,0.11666645]
[1724199518560,0.001,59393.0,59388.0,0.13866645]
[1724199519340,0.001,59393.0,59388.0,0.16874341]
[1724199519691,0.001,59393.0,59388.0,0.13866645]
[1724199519898,0.001,59393.0,59388.0,0.12466645]
[1724199520111,0.001,59393.0,59390.0,0.03383]
[1724199520320,0.001,59393.0,59389.0,0.0632]
[1724199520321,0.061,59409.0,59392.0,0.0632]
[1724199520528,0.001,59402.0,59394.0,0.0753]
[1724199520967,0.0825,59403.0,59394.0,0.0753]
[1724199521212,0.0104104,59401.0,59394.0,0.0743]
[1724199521416,0.0825,59403.0,59394.0,0.0743]
[1724199521651,0.0104104,59400.0,59394.0,0.0823]
[1724199521858,0.001,59402.0,59394.0,0.0823]
[1724199522074,0.0104104,59399.0,59394.0,0.0743]
[1724199522290,0.0825,59403.0,59394.0,0.0743]
[1724199522508,0.01543781,59402.0,59394.0,0.0743]
[1724199522729,0.0104104,59402.0,59394.0,0.0743]
[1724199523158,0.0104104,59402.0,59394.0,0.0883]
[1724199523328,0.01543781,59401.0,59394.0,0.0883]
[1724199523654,0.0825,59403.0,59394.0,0.0883]
[1724199523655,0.0825,59407.0,59394.0,0.0883]
[1724199523859,0.0104104,59400.0,59395.0,0.01515]
[1724199524064,0.001,59403.0,59394.0,0.0953]
[1724199524065,0.001,59403.0,59394.0,0.0883]
[1724199524270,0.01543777,59402.0,59394.0,0.0743]
[1724199524477,0.01543777,59402.0,59394.0,0.0963]
[1724199524478,0.01543777,59401.0,59394.0,0.0963]
[1724199524709,0.0114104,59402.0,59394.0,0.12213]
[1724199524920,0.01543776,59401.0,59394.0,0.12213]
[1724199525131,0.001,59400.0,59395.0,0.01]
[1724199525345,0.001,59400.0,59394.0,0.10813]
[1724199525800,0.001,59400.0,59394.0,0.11813]
[1724199526428,0.001,59400.0,59394.0,0.13213]
[1724199526898,0.0104104,59399.0,59394.0,0.10813]
[1724199527109,0.0104104,59399.0,59394.0,0.12213]
[1724199527312,0.001,59400.0,59395.0,0.009]
[1724199527520,0.01543777,59399.0,59394.0,0.12213]
[1724199527746,0.0825,59407.0,59394.0,0.10813]
[1724199527971,0.001,59400.0,59394.0,0.11713]
[1724199528206,0.01543777,59399.0,59394.0,0.13113]
[1724199528405,0.0104104,59399.0,59394.0,0.12213]
[1724199528627,0.0104104,59399.0,59395.0,0.1178]
[1724199528764,0.001,59400.0,59396.0,0.0825]
[1724199528965,0.01543776,59399.0,59396.0,0.0825]
[1724199529225,0.001,59400.0,59396.0,0.0825]
[1724199529376,0.01543776,59399.0,59396.0,0.0825]
[1724199529583,0.01543776,59398.0,59396.0,0.0825]
[1724199529779,0.001,59400.0,59396.0,0.0825]
[1724199530040,0.01543774,59399.0,59396.0,0.0825]
[1724199530234,0.08941662,59409.0,59396.0,0.0825]
[1724199530235,0.01543774,59398.0,59396.0,0.0825]
[1724199530450,0.01543774,59397.0,59396.0,0.0825]
[1724199531030,0.01543774,59397.0,59396.0,0.1055]
[1724199531426,0.01543774,59397.0,59396.0,0.0965]
[1724199531629,0.01543774,59397.0,59396.0,0.0825]
[1724199531937,0.01643774,59397.0,59396.0,0.0915]
[1724199532322,0.01643774,59397.0,59396.0,0.009]
[1724199532516,0.02685061,59397.0,59396.0,0.009]
[1724199532748,0.05486951,59397.0,59396.0,0.009]
[1724199532918,0.05486951,59397.0,59396.0,0.023]
[1724199532919,0.15671703,59397.0,59396.0,0.023]
[1724199533796,0.15671703,59397.0,59396.0,0.009]
[1724199534001,0.15671703,59397.0,59396.0,0.023]
[1724199534154,0.13196951,59397.0,59396.0,0.014]
[1724199534356,0.11294294,59397.0,59396.0,0.023]
[1724199534554,0.05486951,59397.0,59396.0,0.023]
[1724199536943,0.1958852,59397.0,59396.0,0.023]
[1724199537133,0.29952856,59397.0,59396.0,0.023]
[1724199537339,0.34298949,59397.0,59396.0,0.023]
[1724199538750,0.37108158,59397.0,59396.0,0.023]
[1724199538949,0.23006589,59397.0,59396.0,0.023]
[1724199539158,0.2019738,59397.0,59396.0,0.023]
[1724199539505,0.1208738,59397.0,59396.0,0.023]
[1724199539680,0.14896822,59397.0,59396.0,0.023]
[1724199539905,0.1208738,59397.0,59396.0,0.023]
[1724199540532,0.03950641,59397.0,59396.0,0.023]
[1724199540760,0.05494713,59397.0,59396.0,0.023]
[1724199540963,0.05487419,59397.0,59396.0,0.023]
[1724199542151,0.05487419,59397.0,59396.0,0.1008]
[1724199543178,0.01141287,59397.0,59396.0,0.1008]
[1724199543390,0.02685084,59397.0,59396.0,0.1008]
[1724199543593,0.01643797,59397.0,59396.0,0.1008]
[1724199543799,0.0268366,59397.0,59396.0,0.1008]
[1724199544206,0.05485246,59397.0,59396.0,0.1008]
[1724199546903,0.01139863,59397.0,59396.0,0.1008]
[1724199547014,0.05485191,59397.0,59396.0,0.1008]
[1724199547222,0.01139863,59397.0,59396.0,0.1008]
[1724199547438,0.02683645,59397.0,59396.0,0.1008]
[1724199547845,0.04445341,59397.0,59396.0,0.1008]
[1724199548046,0.02684929,59397.0,59396.0,0.1008]
[1724199548470,0.05486488,59397.0,59396.0,0.1008]
[1724199551020,0.05486483,59397.0,59396.0,0.19215019]
[1724199551224,0.01141147,59397.0,59396.0,0.66235783]
[1724199551426,0.001,59397.0,59396.0,0.5367601]
[1724199551663,0.001,59397.0,59396.0,0.66235783]
[1724199552341,0.001,59397.0,59396.0,0.66248333]
[1724199552533,0.001,59397.0,59396.0,0.66348333]
[1724199552734,0.001,59397.0,59396.0,0.76348333]
[1724199552870,0.001,59397.0,59396.0,0.67057395]
[1724199553521,0.001,59397.0,59396.0,0.79628154]
[1724199553727,0.000822,59400.0,59396.0,0.64728154]
[1724199553924,0.000822,59400.0,59399.0,0.07542501]
[1724199554125,0.000822,59400.0,59399.0,0.58816896]
[1724199554327,0.000822,59400.0,59399.0,0.71583474]
[1724199554766,0.000822,59400.0,59399.0,0.71483474]
[1724199554944,0.000822,59400.0,59399.0,0.74866474]
[1724199555122,0.000822,59400.0,59399.0,0.62099896]
[1724199555505,0.000822,59400.0,59399.0,0.17383]
[1724199555724,0.000822,59400.0,59399.0,0.17719638]
[1724199556105,0.000822,59400.0,59399.0,0.19119638]
[1724199556312,0.001,59400.0,59399.0,0.67893279]
[1724199556651,0.02800703,59418.0,59401.0,0.03383]
[1724199556783,0.01543343,59417.0,59404.0,0.05023792]
[1724199556987,0.04344046,59416.0,59404.0,0.00236631]
[1724199557198,0.04344046,59415.0,59404.0,0.00236631]
[1724199557394,0.04344046,59414.0,59404.0,0.00236631]
[1724199557577,0.061821,59419.0,59404.0,0.00236631]
[1724199557578,0.01543343,59413.0,59406.0,0.0793]
[1724199557774,0.01543343,59412.0,59406.0,0.08202079]
[1724199557976,0.01543343,59411.0,59406.0,0.08202079]
[1724199558179,0.01543343,59410.0,59406.0,0.08202079]
[1724199558437,0.000821,59419.0,59406.0,0.0793]
[1724199558438,0.01543343,59409.0,59406.0,0.0793]
[1724199558653,0.01543343,59408.0,59406.0,0.0793]
[1724199558800,0.01543343,59407.0,59406.0,0.0793]
[1724199559021,0.065,59413.0,59406.0,0.0793]
[1724199559251,0.05387885,59412.0,59406.0,0.0793]
[1724199559484,0.01043574,59412.0,59404.0,0.003]
[1724199559688,0.04344532,59411.0,59403.0,0.0777]
[1724199559892,0.04344532,59410.0,59406.0,0.014]
[1724199560094,0.01543485,59409.0,59406.0,0.022]
[1724199560446,0.00956609,59408.0,59406.0,0.022]
[1724199560659,0.01543485,59407.0,59406.0,0.022]
[1724199560839,0.01543485,59407.0,59406.0,0.014]
[1724199561042,0.01543485,59407.0,59406.0,0.011]
[1724199561246,0.00956609,59407.0,59406.0,0.011]
[1724199561446,0.00956609,59407.0,59404.0,0.014]
[1724199561646,0.01543485,59406.0,59404.0,0.014]
[1724199561850,0.05302151,59406.0,59400.0,0.03383]
[1724199562052,0.04344846,59405.0,59400.0,0.03383]
[1724199562273,0.01543485,59404.0,59400.0,0.03383]
[1724199562707,0.02589514,59403.0,59400.0,0.03383]
[1724199563058,0.01543485,59402.0,59400.0,0.03383]
[1724199563291,0.01543485,59402.0,59400.0,0.04783]
[1724199563466,0.01543709,59401.0,59400.0,0.04783]
[1724199563599,0.01543709,59401.0,59400.0,0.03383]
[1724199563600,0.02589738,59401.0,59400.0,0.03383]
[1724199563798,0.02589738,59401.0,59400.0,0.04783]
[1724199564231,0.02589738,59401.0,59400.0,0.03383]
[1724199564403,0.02589738,59401.0,59400.0,0.06183]
[1724199565064,0.02589738,59401.0,59400.0,0.04783]
[1724199565190,0.02589738,59401.0,59400.0,0.06183]
[1724199566256,0.02589738,59401.0,59400.0,0.04783]
[1724199566472,0.02589738,59401.0,59400.0,0.014]
[1724199566675,0.02689738,59401.0,59400.0,0.028]
[1724199567253,0.02669474,59401.0,59400.0,0.028]
[1724199567609,0.02669474,59401.0,59400.0,0.06183]
[1724199567720,0.01623445,59401.0,59400.0,0.06183]